bitfinex/quotes_SOLUSD_20250705
["timestamp","ask_amount","ask_price","bid_price","bid_amount"]
[1751724046441,5.04486044,148.21,148.2,6.74763832]
[1751724048762,4.46184512,148.24,148.2,6.74763832]
[1751724048942,5.04604749,148.23,148.2,6.74763832]
[1751724049145,5.04604749,148.22,148.2,6.74763832]
[1751724049346,4.46184512,148.24,148.2,6.74763832]
[1751724049546,5.04613868,148.23,148.2,6.74763832]
[1751724049743,5.04613868,148.22,148.2,6.74763832]
[1751724049951,4.46184512,148.24,148.2,6.74763832]
[1751724050143,5.04650276,148.23,148.2,6.74763832]
[1751724050350,5.04650276,148.22,148.2,6.74763832]
[1751724050664,4.46184512,148.23,148.2,6.74763832]
[1751724050864,5.04671899,148.22,148.2,6.74763832]
[1751724051053,4.46184512,148.23,148.2,6.74763832]
[1751724051363,5.04671746,148.22,148.2,6.74763832]
[1751724051565,4.46184512,148.23,148.2,6.74763832]
[1751724051758,5.0469887,148.22,148.2,6.74763832]
[1751724052061,4.46184512,148.23,148.2,6.74763832]
[1751724052252,5.04699195,148.22,148.2,6.74763832]
[1751724052443,5.04699195,148.21,148.2,6.74763832]
[1751724053553,4.46184512,148.24,148.2,6.74763832]
[1751724053755,5.04733464,148.23,148.2,6.74763832]
[1751724054072,5.04733464,148.22,148.18,11.21039418]
[1751724054249,5.04733464,148.21,148.18,11.21039418]
[1751724054573,4.46184512,148.23,148.18,11.21039418]
[1751724054748,5.04728137,148.22,148.18,11.21039418]
[1751724054949,5.04728137,148.21,148.19,4.46184512]
[1751724055151,4.46184512,148.23,148.19,11.20948546]
[1751724055356,5.04757055,148.22,148.19,11.20948546]
[1751724055666,5.04757055,148.21,148.19,11.20948546]
[1751724055869,4.46184512,148.23,148.19,11.20948546]
[1751724056041,5.04756621,148.22,148.19,11.20948546]
[1751724056246,5.04756621,148.21,148.19,11.20948546]
[1751724056446,4.46184512,148.23,148.19,11.20948546]
[1751724056769,5.04791022,148.22,148.19,11.20948546]
[1751724056949,5.04791022,148.21,148.19,6.74764034]
[1751724057153,4.46184512,148.23,148.19,6.74764034]
[1751724057366,5.04833755,148.22,148.19,6.74764034]
[1751724057569,5.04833755,148.21,148.19,6.74764034]
[1751724057868,4.46184512,148.23,148.19,6.74764034]
[1751724058066,5.04832077,148.22,148.19,6.74764034]
[1751724058265,5.04832077,148.21,148.19,6.74764034]
[1751724058443,4.46184512,148.23,148.19,6.74764034]
[1751724058646,5.0488029,148.22,148.19,6.74764034]
[1751724058868,5.0488029,148.21,148.19,6.74764034]
[1751724059066,4.46184512,148.23,148.19,6.74764034]
[1751724059262,5.0488029,148.22,148.19,6.74764034]
[1751724059463,5.0488029,148.21,148.19,6.74764034]
[1751724059662,4.46184512,148.23,148.19,6.74764034]
[1751724059862,5.04937306,148.22,148.19,6.74764034]
[1751724060169,5.04937306,148.21,148.19,6.74764034]
[1751724060358,4.46184512,148.23,148.19,6.74764034]
[1751724060559,5.05004707,148.22,148.2,4.46184512]
[1751724060772,12.25588892,148.25,148.2,4.46184512]
[1751724061072,5.05048596,148.24,148.2,4.46184512]
[1751724061275,5.05048596,148.23,148.2,4.46184512]
[1751724061455,5.05048596,148.22,148.2,4.46184512]
[1751724061650,4.46184512,148.25,148.21,6.74718305]
[1751724061964,5.05148545,148.24,148.21,6.74718305]
[1751724062172,4.46184512,148.25,148.21,6.74718305]
[1751724062173,5.05148545,148.23,148.21,6.74718305]
[1751724062362,5.05148545,148.22,148.21,6.74718305]
[1751724066679,5.05148545,148.22,148.2,11.20948344]
[1751724066878,10.78588892,148.26,148.21,4.46184512]
[1751724067056,5.05451758,148.25,148.23,4.46184512]
[1751724067387,5.05451758,148.24,148.22,0.14216157]
[1751724067591,0.03,148.26,148.22,0.14216157]
[1751724067759,5.05398943,148.25,148.22,0.14216157]
[1751724067962,0.03,148.26,148.22,0.14216157]
[1751724068174,5.05408624,148.25,148.22,0.14216157]
[1751724068379,0.03,148.26,148.22,0.14216157]
[1751724068571,5.05158244,148.25,148.24,4.46184512]
[1751724068774,0.03,148.26,148.24,11.20766271]
[1751724069464,5.0490445,148.25,148.24,11.20766271]
[1751724070257,0.03,148.26,148.24,11.20766271]
[1751724074376,0.03,148.26,148.23,11.2081178]
[1751724076686,4.49184512,148.26,148.23,6.74627268]
[1751724084096,0.03,148.26,148.23,6.74627268]
[1751724085593,4.49184512,148.26,148.23,6.74627268]
[1751724088200,0.03,148.26,148.23,6.74627268]
[1751724090412,0.03,148.26,148.23,11.2081178]
[1751724094642,0.03,148.26,148.24,11.20743023]
[1751724095441,0.03,148.26,148.24,6.74558511]
[1751724096452,0.03,148.26,148.24,4.46184512]
[1751724096647,0.03,148.26,148.23,6.74627268]
[1751724096934,0.03,148.26,148.23,11.2081178]
[1751724098040,0.03,148.26,148.24,4.46184512]
[1751724099442,0.03,148.26,148.25,4.46184512]
[1751724099636,5.07306352,148.26,148.25,4.46184512]
[1751724100558,5.07306352,148.26,148.24,11.2074758]
[1751724100725,0.03,148.26,148.24,11.2074758]
[1751724101324,0.03,148.26,148.25,4.46184512]
[1751724101527,5.07445526,148.26,148.25,4.46184512]
[1751724107654,5.07445526,148.26,148.25,11.20720768]
[1751724113258,5.07445526,148.26,148.25,4.46184512]
[1751724114259,5.07445526,148.26,148.25,11.20720768]
[1751724115274,5.07445526,148.26,148.25,4.46184512]
[1751724115858,5.07445526,148.26,148.25,11.20720768]
[1751724123186,0.03,148.26,148.25,11.20720768]
[1751724126965,0.03,148.26,148.25,4.46184512]
[1751724127394,5.08128775,148.26,148.25,4.46184512]
[1751724131916,5.08128775,148.26,148.23,6.74609487]
[1751724132212,5.08128775,148.26,148.25,4.46184512]
[1751724132213,0.03,148.26,148.25,4.46184512]
[1751724132419,5.08108048,148.26,148.25,4.46184512]
[1751724149433,0.03,148.26,148.25,4.46184512]
[1751724149630,5.08249841,148.26,148.25,4.46184512]
[1751724153243,5.08249841,148.26,148.25,4.46184512]
[1751724157039,5.08249841,148.26,148.23,6.74609827]
[1751724157245,0.03,148.26,148.25,4.46184512]
[1751724157447,5.08268674,148.26,148.25,4.46184512]
[1751724159149,5.08262212,148.26,148.25,4.46184512]
[1751724161922,5.08262212,148.26,148.22,6.88869729]
[1751724162124,5.05262212,148.25,148.22,6.74653572]
[1751724162444,5.0507226,148.24,148.22,6.74653572]
[1751724162629,5.05002483,148.23,148.14,16.84070147]
[1751724162830,5.05002483,148.22,148.19,11.36184512]
[1751724163143,5.05002483,148.21,148.19,4.46184512]
[1751724163327,4.46184512,148.23,148.19,4.46184512]
[1751724163518,5.04498026,148.22,148.18,4.46184512]
[1751724163723,5.04498026,148.21,148.18,4.46184512]
[1751724163944,5.04498026,148.2,148.17,11.21084964]
[1751724164150,5.04059768,148.21,148.17,11.21084964]
[1751724164459,5.04059768,148.2,148.17,11.21084964]
[1751724164625,5.04059768,148.21,148.17,11.21084964]
[1751724164826,5.04059768,148.2,148.17,11.21084964]
[1751724165138,5.04059768,148.21,148.17,11.21084964]
[1751724165343,11.20886611,148.22,148.17,11.21084964]
[1751724165639,5.03782602,148.21,148.18,4.46184512]
[1751724168756,5.03782602,148.22,148.18,4.46184512]
[1751724169955,5.03782602,148.22,148.19,4.46184512]
[1751724170162,5.03782602,148.23,148.19,4.46184512]
[1751724171756,5.03782602,148.23,148.2,4.46184512]
[1751724171956,5.03782602,148.23,148.21,4.46184512]
[1751724172165,5.03782602,148.24,148.21,4.46184512]
[1751724172460,5.03782602,148.24,148.22,4.46184512]
[1751724173051,5.03782602,148.25,148.22,4.46184512]
[1751724173956,5.03782602,148.25,148.24,4.46184512]
[1751724174147,0.03,148.26,148.24,4.46184512]
[1751724174459,0.03,148.26,148.25,4.46184512]
[1751724189174,0.03,148.26,148.25,11.20720768]
[1751724190468,0.03,148.26,148.25,29.99901811]
[1751724190667,0.03,148.26,148.25,55.99901811]
[1751724203881,0.03,148.26,148.25,89.89901811]
[1751724209075,0.2,148.27,148.26,18.64964886]
[1751724209275,0.2,148.27,148.26,23.11149398]
[1751724210394,0.2,148.27,148.26,29.85640157]
[1751724215102,0.2,148.27,148.26,29.99856314]
[1751724215288,0.2,148.27,148.26,11.20675271]
[1751724222490,4.66184512,148.27,148.2,16.86820511]
[1751724222696,4.46184512,148.25,148.21,18.64964886]
[1751724222887,4.46184512,148.25,148.21,25.39683191]
[1751724223084,4.46184512,148.24,148.21,6.74718305]
[1751724223788,1.6532,148.26,148.21,6.74718305]
[1751724223986,6.95995924,148.24,148.21,6.74718305]
[1751724224583,11.99720163,148.25,148.21,6.74718305]
[1751724225399,11.99720163,148.25,148.21,13.70714229]
[1751724226098,5.03724239,148.25,148.21,13.70714229]
[1751724226298,5.03724239,148.25,148.22,6.95995924]
[1751724227404,8.61315924,148.26,148.22,6.95995924]
[1751724228509,13.6473367,148.26,148.22,13.70638309]
[1751724232107,6.68737746,148.26,148.22,13.70638309]
[1751724232401,13.6473367,148.26,148.22,13.70638309]
[1751724234408,8.61315924,148.26,148.22,13.70638309]
[1751724237310,5.23095786,148.27,148.24,6.95995924]
[1751724238412,5.23095786,148.27,148.23,6.95995924]
[1751724240415,12.1909171,148.27,148.23,13.70586818]
[1751724240721,12.1909171,148.27,148.23,6.74590894]
[1751724243795,4.45355405,148.25,148.2,30.45355405]
[1751724243990,4.45355405,148.25,148.2,4.45355405]
[1751724245018,4.45355405,148.25,148.21,6.74718305]
[1751724245517,4.45355405,148.23,148.2,6.74743444]
[1751724246502,4.45355405,148.24,148.2,6.74743444]
[1751724246903,4.45355405,148.24,148.2,4.45355405]
[1751724247401,4.45355405,148.25,148.21,4.45355405]
[1751724247601,5.99855405,148.26,148.21,4.45355405]
[1751724247803,8.50374874,148.26,148.21,6.95874874]
[1751724248008,13.52860607,148.26,148.21,6.95874874]
[1751724250799,13.52860607,148.26,148.21,13.70555298]
[1751724251123,6.95874874,148.25,148.21,13.70555298]
[1751724256002,11.98360607,148.25,148.21,13.70555298]
[1751724259728,11.98360607,148.25,148.2,6.95874874]
[1751724260329,5.02485733,148.25,148.2,6.95874874]
[1751724260517,11.98360607,148.25,148.2,6.95874874]
[1751724261422,11.98360607,148.25,148.21,6.74718305]
[1751724262423,5.02485733,148.24,148.21,6.74718305]
[1751724264332,6.95874874,148.25,148.21,6.74718305]
[1751724264533,5.03695804,148.24,148.21,6.74718305]
[1751724264836,6.95874874,148.25,148.21,6.74718305]
[1751724265021,5.03695804,148.24,148.21,6.74718305]
[1751724265222,6.95874874,148.25,148.21,6.74718305]
[1751724265423,5.03706578,148.24,148.21,6.74718305]
[1751724265622,6.95874874,148.25,148.21,6.74718305]
[1751724265839,5.03948222,148.24,148.21,6.74718305]
[1751724266018,13.70411785,148.25,148.21,6.74718305]
[1751724266220,11.99822532,148.24,148.21,6.74718305]
[1751724266434,5.0427415,148.23,148.21,6.74718305]
[1751724266738,6.95874874,148.24,148.21,6.74718305]
[1751724266917,5.0427415,148.23,148.21,6.74718305]
[1751724267233,6.95874874,148.24,148.21,6.74718305]
[1751724267429,5.04279666,148.23,148.21,6.74718305]
[1751724267615,6.95874874,148.24,148.21,6.74718305]
[1751724267815,5.04772787,148.23,148.2,4.45455431]
[1751724268015,4.45455431,148.24,148.2,4.45455431]
[1751724268228,5.04772439,148.23,148.2,4.45455431]
[1751724268516,4.45455431,148.24,148.2,4.45455431]
[1751724268730,5.04772227,148.23,148.2,4.45455431]
[1751724269037,5.04772227,148.22,148.2,11.2019257]
[1751724269237,4.45455431,148.24,148.2,11.2019257]
[1751724269531,5.04729015,148.23,148.2,11.2019257]
[1751724269714,5.04729015,148.22,148.2,11.2019257]
[1751724269917,4.45455431,148.24,148.2,11.2019257]
[1751724270123,5.04729015,148.23,148.2,11.2019257]
[1751724270331,5.04729015,148.22,148.2,11.2019257]
[1751724270535,4.45455431,148.24,148.2,11.2019257]
[1751724270715,5.047107,148.23,148.2,11.2019257]
[1751724270915,5.047107,148.22,148.2,11.2019257]
[1751724271136,4.45455431,148.24,148.2,11.2019257]
[1751724271341,5.04699826,148.23,148.2,11.2019257]
[1751724271638,5.04699826,148.22,148.2,11.2019257]
[1751724271837,4.45455431,148.24,148.2,11.2019257]
[1751724272038,5.04693705,148.23,148.2,11.2019257]
[1751724272241,5.04693705,148.22,148.2,11.2019257]
[1751724272445,4.45455431,148.24,148.2,11.2019257]
[1751724272616,5.04678477,148.23,148.2,11.2019257]
[1751724272917,5.04678477,148.22,148.2,11.2019257]
[1751724273116,4.45455431,148.24,148.2,11.2019257]
[1751724273316,5.04677673,148.23,148.2,11.2019257]
[1751724273534,5.04677673,148.22,148.2,11.2019257]
[1751724273832,4.45455431,148.24,148.2,11.2019257]
[1751724274032,5.04664995,148.23,148.2,11.2019257]
[1751724274225,5.04664995,148.22,148.2,11.2019257]
[1751724274521,4.45455431,148.24,148.2,11.2019257]
[1751724274722,5.04653222,148.23,148.2,11.2019257]
[1751724274924,5.04653222,148.22,148.2,11.2019257]
[1751724275133,4.45455431,148.25,148.2,11.2019257]
[1751724275335,5.04697787,148.24,148.21,4.45455431]
[1751724275530,5.04697787,148.23,148.21,4.45455431]
[1751724275744,4.45455431,148.25,148.21,4.45455431]
[1751724276036,5.04693741,148.24,148.21,4.45455431]
[1751724276244,5.04693741,148.23,148.21,11.20167988]
[1751724276446,4.45455431,148.25,148.21,11.20167988]
[1751724276741,5.04696004,148.24,148.21,11.20167988]
[1751724276920,5.04696004,148.23,148.21,11.20167988]
[1751724277120,4.45455431,148.25,148.21,11.20167988]
[1751724277320,5.04702073,148.24,148.21,11.20167988]
[1751724277519,5.04702073,148.23,148.21,11.20167988]
[1751724277739,4.45455431,148.25,148.21,11.26167988]
[1751724277943,5.04698247,148.24,148.21,11.26167988]
[1751724278244,5.04698247,148.23,148.21,11.26167988]
[1751724278429,4.45455431,148.25,148.21,11.26167988]
[1751724278629,5.04701703,148.24,148.21,11.26167988]
[1751724278833,5.04701703,148.23,148.21,11.26167988]
[1751724279023,4.45455431,148.25,148.21,11.26167988]
[1751724279224,5.04701703,148.24,148.21,11.26167988]
[1751724279424,5.04701703,148.23,148.21,11.26167988]
[1751724279649,4.45455431,148.25,148.21,11.26167988]
[1751724279831,5.04706024,148.24,148.21,11.26167988]
[1751724280151,5.04706024,148.23,148.21,11.26167988]
[1751724280325,4.45455431,148.25,148.21,11.26167988]
[1751724280524,5.04682557,148.24,148.21,11.26167988]
[1751724280846,5.04682557,148.23,148.21,11.26167988]
[1751724281047,4.45455431,148.25,148.21,11.26167988]
[1751724281226,5.04682557,148.24,148.21,11.26167988]
[1751724281426,5.04682557,148.23,148.21,11.26167988]
[1751724281732,4.45455431,148.25,148.21,11.26167988]
[1751724282037,5.0468846,148.24,148.21,11.26167988]
[1751724282237,5.0468846,148.23,148.21,11.26167988]
[1751724282438,4.45455431,148.25,148.21,11.26167988]
[1751724282637,5.04738683,148.24,148.21,11.26167988]
[1751724282849,5.04738683,148.23,148.21,11.26167988]
[1751724283034,4.45455431,148.25,148.21,11.26167988]
[1751724283233,5.04738683,148.24,148.21,11.26167988]
[1751724283434,5.04738683,148.23,148.21,0.06]
[1751724283642,4.45455431,148.25,148.21,0.06]
[1751724283834,5.04795562,148.24,148.21,0.06]
[1751724284034,5.04795562,148.23,148.21,0.06]
[1751724284235,4.45455431,148.25,148.21,0.06]
[1751724284428,5.04802189,148.24,148.21,0.06]
[1751724284628,5.04802189,148.23,148.21,0.06]
[1751724284842,4.45455431,148.25,148.21,0.06]
[1751724285044,5.04861406,148.24,148.21,0.06]
[1751724285244,5.04861406,148.23,148.21,0.06]
[1751724285550,4.45455431,148.25,148.21,0.06]
[1751724285751,5.0486763,148.24,148.22,4.45455431]
[1751724285948,5.0486763,148.23,148.22,4.45455431]
[1751724287952,5.0486763,148.23,148.22,11.20128214]
[1751724292050,5.0486763,148.23,148.22,6.74672783]
[1751724292251,5.0486763,148.23,148.22,11.20128214]
[1751724292448,0.03,148.26,148.22,11.20128214]
[1751724292658,5.05065297,148.25,148.23,4.45455431]
[1751724292956,5.05065297,148.24,148.23,4.45455431]
[1751724294344,5.05065297,148.24,148.23,11.20082699]
[1751724305865,0.03,148.26,148.23,11.20082699]
[1751724306069,5.04571761,148.25,148.23,11.20082699]
[1751724306365,0.03,148.26,148.23,11.20082699]
[1751724306662,5.04540697,148.25,148.23,11.20082699]
[1751724306863,0.03,148.26,148.23,11.20082699]
[1751724307070,5.04541211,148.25,148.23,11.20082699]
[1751724307259,0.03,148.26,148.23,11.20082699]
[1751724307441,5.04513816,148.25,148.23,11.20082699]
[1751724307644,0.03,148.26,148.23,11.20082699]
[1751724307967,5.04513816,148.25,148.23,11.20082699]
[1751724308271,0.03,148.26,148.23,11.20082699]
[1751724308473,5.04490444,148.25,148.23,11.20082699]
[1751724308664,0.03,148.26,148.23,11.20082699]
[1751724308841,5.04490274,148.25,148.23,11.20082699]
[1751724309046,0.03,148.26,148.23,11.20082699]
[1751724309246,5.04490274,148.25,148.23,11.20082699]
[1751724309471,0.03,148.26,148.23,11.20082699]
[1751724309665,5.0449081,148.25,148.24,4.45455431]
[1751724310267,0.03,148.26,148.24,4.45455431]
[1751724310441,0.03,148.26,148.25,4.45455431]
[1751724311053,0.03,148.26,148.25,11.19991687]
[1751724329692,0.03,148.26,148.25,11.25991687]
[1751724329993,0.03,148.26,148.25,6.80536256]
[1751724330165,1e-08,148.26,148.25,30.0517273]
[1751724331866,0.03,148.28,148.27,44.64964886]
[1751724332072,0.03,148.28,148.27,49.10420317]
[1751724333981,0.03,148.28,148.27,55.84865585]
[1751724341976,0.03,148.28,148.27,89.84865585]
[1751724346577,0.03,148.28,148.27,89.87865585]
[1751724351822,0.2,148.29,148.28,18.79181043]
[1751724352105,5.233874,148.34,148.3,44.79181043]
[1751724352308,0.2,148.34,148.3,49.24636474]
[1751724353309,0.2,148.34,148.3,55.98945307]
[1751724353483,5.22823386,148.34,148.3,55.98945307]
[1751724356597,0.2,148.34,148.3,55.98945307]
[1751724366111,5.23002531,148.34,148.3,55.98945307]
[1751724368591,0.2,148.34,148.3,55.98945307]
[1751724370196,5.23444986,148.34,148.3,55.98945307]
[1751724371118,0.2,148.34,148.3,55.98945307]
[1751724371729,0.2,148.34,148.32,0.14216157]
[1751724371940,0.2,148.34,148.33,4.45455431]
[1751724372224,5.23581807,148.34,148.33,4.45455431]
[1751724372728,5.23581807,148.34,148.33,11.19627884]
[1751724374099,5.23581807,148.34,148.3,42.85772083]
[1751724374307,0.2,148.34,148.31,11.19718798]
[1751724374510,5.04238299,148.33,148.31,11.19718798]
[1751724374708,0.2,148.34,148.31,11.19718798]
[1751724374920,5.04228477,148.33,148.31,11.19718798]
[1751724375209,0.2,148.34,148.31,11.19718798]
[1751724375410,5.04366475,148.33,148.31,11.19718798]
[1751724375627,0.2,148.34,148.31,6.74263367]
[1751724375820,9.49857907,148.33,148.3,6.74291786]
[1751724376006,5.04402476,148.32,148.3,6.74291786]
[1751724376206,6.01965431,148.33,148.27,6.95]
[1751724376207,9.49921406,148.31,148.27,6.95]
[1751724376414,9.49824218,148.3,148.27,6.95]
[1751724376613,5.04339864,148.29,148.27,6.95]
[1751724376829,4.45455431,148.3,148.27,6.95]
[1751724376830,5.04339864,148.28,148.27,6.95]
[1751724377005,5.04339864,148.28,148.27,13.69434078]
[1751724377735,4.45455431,148.3,148.27,6.77434078]
[1751724377910,5.04181849,148.29,148.27,6.77434078]
[1751724378112,4.45455431,148.3,148.27,6.77434078]
[1751724378413,5.04182948,148.29,148.27,0.03]
[1751724378619,4.45455431,148.3,148.27,0.03]
[1751724378829,5.04045823,148.29,148.27,0.03]
[1751724379019,4.45455431,148.3,148.27,0.03]
[1751724379224,5.04045994,148.29,148.27,0.03]
[1751724379527,4.45455431,148.3,148.27,0.03]
[1751724379730,5.03926573,148.29,148.27,0.03]
[1751724379931,4.45455431,148.3,148.27,0.03]
[1751724380130,5.03926744,148.29,148.27,0.03]
[1751724380328,4.45455431,148.3,148.27,0.03]
[1751724380521,5.03823716,148.29,148.27,0.03]
[1751724380824,4.45455431,148.3,148.27,0.03]
[1751724381025,5.03823716,148.29,148.27,0.03]
[1751724381216,4.45455431,148.3,148.27,0.03]
[1751724381431,5.03813806,148.29,148.27,0.03]
[1751724381630,4.45455431,148.3,148.27,0.03]
[1751724381830,5.03727475,148.29,148.27,0.03]
[1751724382135,4.45455431,148.3,148.27,0.03]
[1751724382309,5.03712697,148.29,148.27,0.03]
[1751724382513,4.45455431,148.3,148.27,0.03]
[1751724382744,5.03637463,148.29,148.27,0.03]
[1751724382941,4.45455431,148.3,148.27,0.03]
[1751724383238,5.03637463,148.29,148.27,0.03]
[1751724383438,5.03553027,148.29,148.27,0.03]
[1751724384335,4.45455431,148.3,148.27,0.03]
[1751724386729,4.51455431,148.31,148.27,0.03]
[1751724386931,5.03313673,148.3,148.27,0.03]
[1751724387119,4.51455431,148.31,148.27,0.03]
[1751724387619,5.03291588,148.3,148.27,0.03]
[1751724387942,5.03291588,148.3,148.28,6.74399784]
[1751724388125,4.51455431,148.31,148.28,6.74399784]
[1751724388940,0.06,148.31,148.28,4.45455431]
[1751724389128,0.06,148.31,148.3,4.45455431]
[1751724391121,0.06,148.31,148.3,11.19764264]
[1751724393344,0.06,148.31,148.3,6.74308833]
[1751724393639,0.06,148.31,148.3,11.19764264]
[1751724401536,0.06,148.31,148.3,6.74308833]
[1751724410682,4.51455431,148.31,148.27,0.03]
[1751724410848,4.45455431,148.29,148.27,0.03]
[1751724411263,4.45455431,148.28,148.27,0.03]
[1751724419371,4.45455431,148.29,148.27,0.03]
[1751724420884,6.74324069,148.3,148.27,0.03]
[1751724421081,4.45455431,148.28,148.27,0.03]
[1751724421282,9.49216692,148.28,148.27,0.03]
[1751724427290,4.45455431,148.28,148.27,0.03]
[1751724427481,9.49216692,148.28,148.27,0.03]
[1751724427683,4.45455431,148.28,148.27,0.03]
[1751724427881,9.49216692,148.28,148.27,0.03]
[1751724428090,4.45455431,148.28,148.27,0.03]
[1751724428293,9.49216692,148.28,148.27,0.03]
[1751724428492,4.45455431,148.28,148.27,0.03]
[1751724428799,9.49216692,148.28,148.27,0.03]
[1751724428976,4.45455431,148.28,148.27,0.03]
[1751724429186,9.49216692,148.28,148.27,0.03]
[1751724429387,4.45455431,148.28,148.27,0.03]
[1751724429589,9.49216692,148.28,148.27,0.03]
[1751724429890,4.45455431,148.28,148.27,0.03]
[1751724430082,9.49216692,148.28,148.27,0.03]
[1751724430284,4.45455431,148.28,148.27,0.03]
[1751724430533,9.49216692,148.28,148.27,0.03]
[1751724430686,4.45455431,148.28,148.27,0.03]
[1751724430889,9.49216692,148.28,148.27,0.03]
[1751724431089,4.45455431,148.28,148.27,0.03]
[1751724431294,9.49216692,148.28,148.27,0.03]
[1751724431494,4.45455431,148.28,148.27,0.03]
[1751724431694,9.49216692,148.28,148.27,0.03]
[1751724432003,4.45455431,148.28,148.27,0.03]
[1751724432192,9.49216692,148.28,148.27,0.03]
[1751724432385,4.45455431,148.28,148.27,0.03]
[1751724432590,9.49216692,148.28,148.27,0.03]
[1751724432791,4.45455431,148.28,148.27,0.03]
[1751724432988,9.49216692,148.28,148.27,0.03]
[1751724433189,4.45455431,148.28,148.27,0.03]
[1751724433405,9.49216692,148.28,148.27,0.03]
[1751724433704,4.45455431,148.28,148.27,0.03]
[1751724433911,9.49216692,148.28,148.27,0.03]
[1751724434205,4.45455431,148.28,148.27,0.03]
[1751724434409,9.49216692,148.28,148.27,0.03]
[1751724434591,4.45455431,148.28,148.27,0.03]
[1751724434795,9.49216692,148.28,148.27,0.03]
[1751724434991,4.45455431,148.28,148.27,0.03]
[1751724435194,9.49216692,148.28,148.27,0.03]
[1751724435403,4.45455431,148.28,148.27,0.03]
[1751724435602,9.49216692,148.28,148.27,0.03]
[1751724435794,4.45455431,148.28,148.27,0.03]
[1751724435998,9.49216692,148.28,148.27,0.03]
[1751724436309,4.45455431,148.28,148.27,0.03]
[1751724436510,9.49216692,148.28,148.27,0.03]
[1751724436686,4.45455431,148.28,148.27,0.03]
[1751724436886,9.49216692,148.28,148.27,0.03]
[1751724437087,4.45455431,148.28,148.27,0.03]
[1751724437289,9.49216692,148.28,148.27,0.03]
[1751724437587,4.45455431,148.28,148.27,0.03]
[1751724437786,9.49216692,148.28,148.27,0.03]
[1751724438020,4.45455431,148.28,148.27,0.03]
[1751724438209,9.49216692,148.28,148.27,0.03]
[1751724438400,4.45455431,148.28,148.27,0.03]
[1751724438600,9.49216692,148.28,148.27,0.03]
[1751724438805,4.45455431,148.28,148.27,0.03]
[1751724438997,9.49216692,148.28,148.27,0.03]
[1751724439195,4.45455431,148.28,148.27,0.03]
[1751724439394,9.49216692,148.28,148.27,0.03]
[1751724439597,0.06,148.31,148.27,0.03]
[1751724439598,9.49216692,148.29,148.27,0.03]
[1751724439804,9.49216692,148.28,148.27,0.03]
[1751724440008,4.45455431,148.28,148.27,0.03]
[1751724440311,9.49216692,148.28,148.27,0.03]
[1751724440616,4.45455431,148.28,148.27,0.03]
[1751724440815,9.49216692,148.28,148.27,0.03]
[1751724441000,4.45455431,148.28,148.27,0.03]
[1751724441305,9.49216692,148.28,148.27,0.03]
[1751724441491,4.45455431,148.28,148.27,0.03]
[1751724441690,9.49216692,148.28,148.27,0.03]
[1751724441891,4.45455431,148.28,148.27,0.03]
[1751724442088,9.49216692,148.28,148.27,0.03]
[1751724442293,4.45455431,148.28,148.27,0.03]
[1751724442505,9.49216692,148.28,148.27,0.03]
[1751724442708,4.45455431,148.28,148.27,0.03]
[1751724443011,9.49216692,148.28,148.27,0.03]
[1751724443212,4.45455431,148.28,148.27,0.03]
[1751724443400,9.49216692,148.28,148.27,0.03]
[1751724443719,4.45455431,148.28,148.27,0.03]
[1751724444015,9.49216692,148.28,148.27,0.03]
[1751724444220,17.89066476,148.28,148.27,0.03]
[1751724444401,36.54031362,148.28,148.27,0.03]
[1751724445563,42.10821315,148.28,148.27,0.03]
[1751724445710,18.64964886,148.27,148.25,0.06]
[1751724445908,54.14181578,148.26,148.25,0.06]
[1751724446097,18.64964886,148.25,148.22,0.06]
[1751724446299,4.45455431,148.23,148.22,0.06]
[1751724446516,9.49216692,148.23,148.22,0.06]
[1751724447299,4.45455431,148.23,148.22,0.06]
[1751724447611,9.49216692,148.23,148.22,0.06]
[1751724452827,4.45455431,148.23,148.22,0.06]
[1751724457039,9.49216692,148.23,148.22,0.06]
[1751724458816,5.03761261,148.23,148.22,0.06]
[1751724459017,4.45455431,148.23,148.22,0.06]
[1751724471848,4.45455431,148.24,148.22,0.06]
[1751724472033,9.49216692,148.24,148.22,0.06]
[1751724472229,4.45455431,148.24,148.22,0.06]
[1751724472624,9.49216692,148.24,148.22,0.06]
[1751724472824,4.45455431,148.24,148.22,0.06]
[1751724475344,5.01884238,148.26,148.22,0.06]
[1751724475538,5.01884238,148.26,148.23,4.45455431]
[1751724475738,4.45455431,148.27,148.23,4.45455431]